[Event "84th Annual Southwest Open"]
[Site "Irving"]
[Date "2018.09.03"]
[Round "8"]
[White "Li, Ben"]
[Black "Shen, Christopher"]
[Result "1-0"]
[ECO "E90"]
[WhiteElo "2324"]
[BlackElo "2254"]
[Annotator "NA"]
[PlyCount "97"]
[EventDate "2018.08.31"]
[EventType "swiss"]
[EventCountry "USA"]
[SourceTitle "playchess.com"]
[Source "ChessBase"]
[SourceQuality "1"]
[TimeControl "5400+30"]

1. d4 {[%emt 0:00:00]} Nf6 {[%emt 0:00:19]} 2. c4 {[%emt 0:00:00]} g6 {[%emt 0:00:13]} 3. Nc3 {[%emt 0:00:00]} Bg7 {[%emt 0:00:12]} 4. e4 {[%emt 0:00:00]} d6 {[%emt 0:00:17]} 5. Nf3 {[%emt 0:00:00]} O-O {[%emt 0:00:09]} 6. h3 {[%emt 0:00:00]} c5 {[%emt 0:00:27]} 7. d5 {[%emt 0:00:00]} e6 {[%emt 0:00:15]} 8. Bd3 {[%emt 0:00:09]} Na6 {[%emt 0:00:34]} 9. O-O {[%emt 0:02:42]} Nc7 {[%emt 0:00:31]} 10. Bg5 {[%emt 0:03:47]} h6 {[%emt 0:02:16]} 11. Bh4 {[%emt 0:12:00] E90: King's Indian: Classical: Early deviations and 6 h3} Rb8 $146 {[%emt 0:05:15]} ({Predecessor:} 11... e5 12. Nd2 Bd7 13. Be2 Qe8 14. a4 Na6 15. Nb5 Qe7 16. a5 Nb4 17. Na3 Qe8 18. Nc2 Na6 {1-0 (49) Drygalov,A (2435)-Kryakvin,D (2592) Voronezh 2018}) 12. Qd2 {[%emt 0:06:21]} e5 {[%emt 0:04:07]} 13. a3 {[%emt 0:03:36]} Bd7 {[%emt 0:03:22]} 14. b4 {[%emt 0:01:28]} b6 {[%emt 0:02:13]} 15. Rab1 {[%emt 0:05:27]} Kh7 {[%emt 0:04:06]} 16. bxc5 {[%emt 0:13:26]} bxc5 {[%emt 0:08:45]} 17. Rxb8 {[%emt 0:00:01]} Qxb8 {[%emt 0:00:02]} 18. Rb1 {[%emt 0:00:02]} Qc8 {[%emt 0:03:19]} 19. Qb2 {[%emt 0:04:18]} Qa6 {[%emt 0:09:04]} 20. Nb5 {[%emt 0:19:26]} Nxb5 {[%emt 0:02:48]} 21. cxb5 {[%emt 0:00:09]} Qa4 {[%emt 0:04:44] [#]} 22. Nd2 $16 {[%emt 0:09:27]} Rb8 {[%emt 0:12:07]} 23. Qb3 {[%emt 0:00:16]} Qxb3 {[%emt 0:06:50]} 24. Rxb3 {[%emt 0:00:18]} g5 {[%emt 0:01:19]} 25. Bg3 {[%emt 0:00:08]} Nh5 {[%emt 0:01:44]} 26. a4 {[%emt 0:01:46]} Bf6 {[%emt 0:00:42]} 27. Be2 {[%emt 0:00:38]} Nf4 {[%emt 0:02:03]} 28. Bxf4 {[%emt 0:00:13]} exf4 {[%emt 0:00:59]} 29. Nc4 {[%emt 0:00:05]} Be7 {[%emt 0:03:10]} 30. Bg4 {[%emt 0:01:42]} Be8 {[%emt 0:02:19]} 31. e5 {[%emt 0:06:08]} Rd8 {[%emt 0:02:09]} 32. Na5 {[%emt 0:02:49]} dxe5 {[%emt 0:01:17]} 33. Nc6 {[%emt 0:00:06]} Bxc6 {[%emt 0:00:04]} 34. bxc6 {[%emt 0:00:03]} Bd6 {[%emt 0:02:39]} 35. Rb7 {[%emt 0:00:07]} Kg6 {[%emt 0:00:30]} 36. Bd7 {[%emt 0:00:34]} c4 {[%emt 0:01:54]} 37. c7 {[%emt 0:00:56]} Bxc7 {[%emt 0:00:07]} 38. Rxc7 {[%emt 0:00:06]} c3 {[%emt 0:00:05]} 39. Rc6+ {[%emt 0:01:24]} Kg7 {[%emt 0:00:45]} 40. Bf5 {[%emt 0:00:07]} Rxd5 {[%emt 0:00:55]} 41. Rxc3 {[%emt 0:00:15]} a5 {[%emt 0:00:31]} 42. f3 {[%emt 0:02:42]} Rd4 {[%emt 0:00:47]} 43. Bc2 {[%emt 0:00:11]} Rd5 {[%emt 0:02:02]} 44. Bb3 {[%emt 0:00:31]} Rd4 {[%emt 0:01:00]} 45. Rc5 {[%emt 0:00:30]} e4 {[%emt 0:00:45]} 46. fxe4 {[%emt 0:00:07]} Rxe4 {[%emt 0:00:02]} 47. Rxa5 {[%emt 0:00:06]} Re1+ {[%emt 0:00:19]} 48. Kf2 {[%emt 0:00:06]} Rb1 {[%emt 0:00:03]} 49. Rb5 {[%emt 0:00:09]} 1-0

[Event "84th Annual Southwest Open"]
[Site "Irving"]
[Date "2018.09.03"]
[Round "8"]
[White "Guo, Arthur"]
[Black "Kung, Thomas"]
[Result "1-0"]
[ECO "C65"]
[WhiteElo "2283"]
[BlackElo "2132"]
[Annotator "NA"]
[PlyCount "129"]
[EventDate "2018.08.31"]
[EventType "swiss"]
[EventCountry "USA"]
[SourceTitle "playchess.com"]
[Source "ChessBase"]
[SourceQuality "1"]
[TimeControl "5400+30"]

1. e4 {[%emt 0:00:00]} e5 {[%emt 0:10:54]} 2. Nf3 {[%emt 0:00:00]} Nc6 {[%emt 0:00:06]} 3. Bb5 {[%emt 0:00:00]} Nf6 {[%emt 0:00:17]} 4. d3 {[%emt 0:00:00]} Bc5 {[%emt 0:00:11]} 5. Bxc6 {[%emt 0:00:00]} dxc6 {[%emt 0:00:09]} 6. h3 {[%emt 0:00:02] C65: Ruy Lopez: Berlin Defence (3...Nf6), unusual lines and 4 0-0 Bc5} Nd7 {[%emt 0:06:11]} 7. Be3 {[%emt 0:00:32]} O-O {[%emt 0:04:38]} 8. Nc3 {[%emt 0:00:29]} Bd6 {[%emt 0:03:44]} 9. O-O {[%emt 0:00:07]} Re8 {[%emt 0:01:32]} 10. a4 {[%emt 0:00:04]} a5 {[%emt 0:03:16]} 11. Nd2 {[%emt 0:00:06]} Nf8 $146 {[%emt 0:04:30]} ({Predecessor:} 11... b6 12. Nc4 Ba6 13. Nxd6 cxd6 {1-0 (50) Caruana,F (2802)-Hou,Y (2652) chess.com INT 2017}) 12. Nc4 {[%emt 0:10:59]} Ng6 {[%emt 0:03:59]} 13. Qh5 {[%emt 0:04:25]} Be6 {[%emt 0:04:51]} 14. b3 {[%emt 0:02:34]} Qe7 {[%emt 0:07:45]} 15. Ne2 {[%emt 0:02:06]} f6 {[%emt 0:03:31]} 16. Ng3 {[%emt 0:04:24]} Qd7 {[%emt 0:04:32]} 17. Nd2 {[%emt 0:04:29]} Bb4 {[%emt 0:01:56]} 18. Nf3 {[%emt 0:02:51]} Nf4 {[%emt 0:04:16]} 19. Bxf4 {[%emt 0:03:51]} exf4 {[%emt 0:00:08]} 20. Ne2 {[%emt 0:00:13]} Bf7 {[%emt 0:04:07]} 21. Qg4 {[%emt 0:02:08]} Qxg4 {[%emt 0:03:05]} 22. hxg4 {[%emt 0:00:01]} g5 {[%emt 0:02:04]} 23. g3 {[%emt 0:04:25]} h5 {[%emt 0:01:54]} 24. Nh2 {[%emt 0:08:10] [#]} f3 $1 {[%emt 0:05:40]} 25. Nxf3 {[%emt 0:01:40]} hxg4 {[%emt 0:00:29]} 26. Nfd4 {[%emt 0:01:39]} Rad8 {[%emt 0:01:16]} 27. Nf5 {[%emt 0:01:44]} Bg6 {[%emt 0:02:17]} 28. Ne3 {[%emt 0:01:38]} f5 {[%emt 0:05:32]} 29. c3 {[%emt 0:05:15]} Bc5 {[%emt 0:02:47]} 30. d4 {[%emt 0:01:45]} Rxe4 {[%emt 0:00:35]} 31. dxc5 {[%emt 0:02:35]} f4 {[%emt 0:00:22]} 32. Nxf4 {[%emt 0:01:54]} gxf4 {[%emt 0:00:14]} 33. Nxg4 {[%emt 0:00:31]} Kg7 {[%emt 0:05:11]} 34. f3 {[%emt 0:04:58]} Re2 {[%emt 0:00:25]} 35. gxf4 {[%emt 0:00:52]} Rdd2 {[%emt 0:02:49]} 36. Rad1 {[%emt 0:00:29]} Bc2 {[%emt 0:00:41]} 37. Rxd2 {[%emt 0:01:52]} Rxd2 {[%emt 0:00:02]} 38. Re1 {[%emt 0:00:12]} Rd1 {[%emt 0:02:02]} 39. Rxd1 {[%emt 0:00:37]} Bxd1 {[%emt 0:00:02]} 40. b4 {[%emt 0:00:01]} Bxf3 {[%emt 0:01:23]} 41. Ne3 {[%emt 0:00:07]} b6 {[%emt 0:00:29]} 42. bxa5 {[%emt 0:01:25]} bxa5 {[%emt 0:00:02]} 43. Kf2 {[%emt 0:01:16]} Be4 {[%emt 0:00:04]} 44. Ke2 {[%emt 0:04:21]} Bb1 {[%emt 0:01:14]} 45. Nc4 {[%emt 0:04:30]} Bc2 {[%emt 0:00:26]} 46. Nxa5 {[%emt 0:00:05]} Bxa4 {[%emt 0:00:04]} 47. Kf3 {[%emt 0:01:20]} Kf6 {[%emt 0:00:36]} 48. Nc4 {[%emt 0:00:29]} Bd1+ {[%emt 0:00:43]} 49. Ke4 {[%emt 0:01:07]} Bh5 {[%emt 0:00:54]} 50. Ne5 {[%emt 0:00:41]} Be8 {[%emt 0:00:16]} 51. Ng4+ {[%emt 0:00:36]} Kg6 {[%emt 0:00:33]} 52. Ke5 {[%emt 0:00:12]} Bd7 {[%emt 0:00:27]} 53. Nf6 {[%emt 0:00:05]} Bh3 {[%emt 0:00:23]} 54. Ne8 {[%emt 0:00:05]} Kf7 {[%emt 0:00:11]} 55. Nxc7 {[%emt 0:00:06]} Bg2 {[%emt 0:00:16]} 56. f5 {[%emt 0:00:12]} Bf3 {[%emt 0:00:10]} 57. Ne6 {[%emt 0:00:05]} Bd5 {[%emt 0:00:23]} 58. Ng5+ {[%emt 0:00:06]} Ke7 {[%emt 0:00:13]} 59. f6+ {[%emt 0:00:04]} Kd7 {[%emt 0:00:35]} 60. Kf5 {[%emt 0:00:06]} Bb3 {[%emt 0:00:53]} 61. Kg6 {[%emt 0:00:23]} Ke8 {[%emt 0:01:04]} 62. Kg7 {[%emt 0:00:10]} Bc4 {[%emt 0:00:16]} 63. f7+ {[%emt 0:00:05]} Bxf7 {[%emt 0:00:07]} 64. Nxf7 {[%emt 0:00:03]} Ke7 {[%emt 0:00:13]} 65. Ng5 {[%emt 0:25:13]} 1-0

[Event "84th Annual Southwest Open"]
[Site "Irving"]
[Date "2018.09.03"]
[Round "8"]
[White "Lin, Andy"]
[Black "Kumar, Naman"]
[Result "1-0"]
[ECO "A49"]
[WhiteElo "2274"]
[BlackElo "1914"]
[Annotator "NA"]
[PlyCount "79"]
[EventDate "2018.08.31"]
[EventType "swiss"]
[EventCountry "USA"]
[SourceTitle "playchess.com"]
[Source "ChessBase"]
[SourceQuality "1"]
[TimeControl "5400+30"]

1. Nf3 {[%emt 0:01:07]} Nf6 {[%emt 0:01:40]} 2. g3 {[%emt 0:00:06]} g6 {[%emt 0:00:38]} 3. b3 {[%emt 0:00:04]} Bg7 {[%emt 0:00:54]} 4. Bb2 {[%emt 0:00:04]} O-O {[%emt 0:00:53]} 5. Bg2 {[%emt 0:00:03]} d6 {[%emt 0:01:50]} 6. d4 {[%emt 0:00:05]} Nbd7 {[%emt 0:01:04]} 7. O-O {[%emt 0:00:07]} e5 {[%emt 0:00:22]} 8. dxe5 {[%emt 0:00:05]} Ng4 {[%emt 0:00:20]} 9. Qd2 {[%emt 0:00:24]} Rb8 {[%emt 0:07:33] A49: 1 d4 Nf6 2 Nf3 g6 3 g3: Anti-King's Indian systems} (9... Ndxe5 10. c4 Re8 11. Nc3 a5 12. Rad1 Bh6 13. Qc2 Bf5 14. e4 Nxf3+ 15. Bxf3 Bd7 16. Bg2 Bg7 17. h3 {1-0 (41) Meier,G (2632)-Amin,B (2635) Dubai 2014}) 10. c4 {[%emt 0:01:40]} Ngxe5 {[%emt 0:00:19]} 11. Nd4 $146 {[%emt 0:01:54]} ({Predecessor:} 11. Nc3 a6 12. Nxe5 dxe5 13. Rfd1 c6 14. Ne4 Qe7 15. a4 Nf6 16. Qg5 h6 17. Qxe5 Qxe5 18. Bxe5 Nxe4 19. Bxb8 Bxa1 20. Bxe4 {1-0 (37) Kosic,D (2455)-Jovanovic,S (2290) Arandjelovac 1993}) 11... Nc5 {[%emt 1:19:57]} 12. Nc3 {[%emt 0:01:08]} Ne6 {[%emt 0:00:00]} 13. Nc2 {[%emt 0:00:24]} a6 {[%emt 0:00:00]} 14. Ne3 {[%emt 0:01:54]} f5 {[%emt 0:00:00]} 15. f4 {[%emt 0:04:51]} Nc6 {[%emt 0:02:00]} 16. Na4 {[%emt 1:24:04]} Re8 {[%emt 0:00:00]} (16... Ncd4 $11) 17. Bxg7 {[%emt 0:00:00]} Nxg7 {[%emt 0:01:00]} 18. Qc3 {[%emt 0:01:00]} Bd7 {[%emt 0:00:00]} 19. Nd5 {[%emt 0:00:00]} Rxe2 {[%emt 0:01:00]} 20. Rfe1 {[%emt 0:01:00]} Rxe1+ {[%emt 0:00:00]} 21. Rxe1 {[%emt 0:00:00]} Be6 {[%emt 0:01:00]} 22. Nb2 {[%emt 0:00:00]} ({White should try} 22. Nf6+ $16 Kh8 23. Nh5 gxh5 24. Rxe6) 22... Ne7 {[%emt 0:00:00]} (22... h6 $11 {remains equal.}) 23. Rxe6 {[%emt 0:00:00]} Nxe6 {[%emt 0:00:00]} 24. Qf6 $1 {[%emt 0:00:00]} Nxd5 {[%emt 0:00:00]} 25. Qxe6+ {[%emt 0:00:00]} Kg7 {[%emt 0:02:00]} 26. Qxd5 {[%emt 0:03:00]} ({Much worse is} 26. Bxd5 Qe8 $14) 26... Qf6 {[%emt 0:00:00]} 27. Qd2 {[%emt 0:00:30]} c6 {[%emt 0:00:00]} 28. Nd1 {[%emt 0:00:00]} Re8 {[%emt 0:00:00]} 29. Kf2 {[%emt 0:00:00]} Qe6 $16 {[%emt 0:02:00]} 30. Qd4+ {[%emt 0:01:30]} Kf7 {[%emt 0:00:00]} 31. Ne3 {[%emt 0:00:30]} a5 {[%emt 0:00:00]} 32. Bf3 {[%emt 0:00:00]} h5 {[%emt 0:00:00]} 33. h3 {[%emt 0:00:00]} Re7 {[%emt 0:00:00]} 34. Be2 {[%emt 0:00:00]} Qf6 {[%emt 0:00:00]} 35. Qd2 {[%emt 0:00:00]} Re4 {[%emt 0:00:00]} 36. Bf3 {[%emt 0:00:00]} Rd4 {[%emt 0:00:00]} 37. Qe2 {[%emt 0:00:00]} b5 {[%emt 0:00:06]} 38. cxb5 {[%emt 0:00:00]} cxb5 {[%emt 0:00:21]} 39. Nd5 {[%emt 0:00:00]} Qd8 {[%emt 0:00:43]} 40. Qe3 {[%emt 0:00:00]} 1-0

[Event "84th Annual Southwest Open"]
[Site "Irving"]
[Date "2018.09.03"]
[Round "8"]
[White "Kumar, Nikhil"]
[Black "Yim, Sung Ho"]
[Result "1-0"]
[ECO "E06"]
[WhiteElo "2268"]
[BlackElo "2271"]
[Annotator "NA"]
[PlyCount "59"]
[EventDate "2018.08.31"]
[EventType "swiss"]
[EventCountry "USA"]
[SourceTitle "playchess.com"]
[Source "ChessBase"]
[SourceQuality "1"]
[TimeControl "5400+30"]

1. d4 {[%emt 0:04:35]} Nf6 {[%emt 0:00:00]} 2. c4 {[%emt 0:00:16]} e6 {[%emt 0:00:00]} 3. Nf3 {[%emt 0:00:34]} d5 {[%emt 0:00:00]} 4. g3 {[%emt 0:00:35]} Be7 {[%emt 0:01:31]} 5. Bg2 {[%emt 0:00:10]} O-O {[%emt 0:00:06]} 6. O-O {[%emt 0:00:10]} dxc4 {[%emt 0:00:06]} 7. Qc2 {[%emt 0:00:11]} c6 {[%emt 0:00:51]} 8. Qxc4 {[%emt 0:00:44]} b5 {[%emt 0:00:05] E06: Katalanisch} 9. Qd3 {[%emt 0:01:08]} (9. Qc2 Bb7 10. Nc3 Nbd7 11. Rd1 Qb6 12. Ne5 Rfd8 13. Be3 Nd5 14. Nxd5 cxd5 15. Rac1 Rac8 16. Qd3 b4 17. Rxc8 Bxc8 {½-½ (41) So,W (2799)-Mamedyarov,S (2809) Berlin 2018}) 9... Bb7 {[%emt 0:01:47]} 10. a4 {[%emt 0:01:50]} a6 {[%emt 0:03:19]} 11. Nc3 {[%emt 0:05:36]} Nbd7 {[%emt 0:00:38]} 12. Bf4 {[%emt 0:01:34]} b4 {[%emt 0:04:25]} 13. Ne4 {[%emt 0:00:25]} Nxe4 {[%emt 0:13:27]} 14. Qxe4 {[%emt 0:01:00]} Nf6 {[%emt 0:00:32]} 15. Qc2 {[%emt 0:01:34]} Rc8 {[%emt 0:04:34]} 16. Rfd1 {[%emt 0:06:11]} c5 {[%emt 0:06:45]} 17. dxc5 {[%emt 0:04:37]} Qa5 $146 {[%emt 0:03:30]} ({Vorgänger:} 17... Bd5 18. c6 Rxc6 19. Qxc6 Bxc6 20. Rxd8 Rxd8 {1-0 (56) Laxman,R (2503)-Ankit,R (2298) Chennai 2010}) 18. Nd4 {[%emt 0:03:36]} Bxg2 {[%emt 0:05:43]} ({Better is} 18... Rxc5 $14 19. Qd2 Qb6) 19. Nb3 {[%emt 0:01:03]} Qb6 {[%emt 0:18:45]} 20. cxb6 {[%emt 0:03:09]} Rxc2 {[%emt 0:00:06]} 21. Kxg2 {[%emt 0:00:26]} Rxe2 {[%emt 0:14:08]} 22. Nd4 {[%emt 0:01:38]} Rxb2 {[%emt 0:02:16]} 23. b7 {[%emt 0:01:53]} Ng4 {[%emt 0:04:18]} 24. h3 {[%emt 0:06:54]} Nxf2 {[%emt 0:03:34]} 25. Rdb1 {[%emt 0:00:19]} Nd3+ $18 {[%emt 0:01:37]} 26. Rxb2 {[%emt 0:00:23]} Nxb2 {[%emt 0:00:02]} 27. Nc6 {[%emt 0:03:40]} Bf6 {[%emt 0:00:31]} 28. b8=Q {[%emt 0:01:13]} Rxb8 {[%emt 0:00:02]} 29. Bxb8 {[%emt 0:00:20]} b3 {[%emt 0:01:00]} 30. Be5 {[%emt 0:03:36]} 1-0

[Event "84th Annual Southwest Open"]
[Site "Irving"]
[Date "2018.09.03"]
[Round "8"]
[White "Easton, Jack"]
[Black "Hung, Daniel"]
[Result "1/2-1/2"]
[ECO "D21"]
[WhiteElo "2262"]
[BlackElo "2104"]
[Annotator "NA"]
[PlyCount "83"]
[EventDate "2018.08.31"]
[EventType "swiss"]
[EventCountry "USA"]
[SourceTitle "playchess.com"]
[Source "ChessBase"]
[SourceQuality "1"]
[TimeControl "5400+30"]

1. d4 {[%emt 0:00:00]} d5 {[%emt 0:00:35]} 2. c4 {[%emt 0:00:00]} dxc4 {[%emt 0:00:03]} 3. Nf3 {[%emt 0:00:00]} c5 {[%emt 0:04:46]} 4. e3 {[%emt 0:00:00]} cxd4 {[%emt 0:00:06]} 5. Bxc4 {[%emt 0:00:00]} Qc7 {[%emt 0:00:09]} 6. Qb3 {[%emt 0:00:00]} e6 {[%emt 0:00:08]} 7. exd4 {[%emt 0:00:00]} Nf6 {[%emt 0:01:05] D21: Queen's Gambit Accepted: 3 Nf3 sidelines} 8. Nc3 {[%emt 0:00:03]} (8. O-O Be7 9. Nc3 a6 10. Be3 O-O 11. Rac1 Nc6 12. Be2 Rd8 13. Rfd1 Ng4 14. Na4 Nxe3 15. fxe3 {0-1 (40) Spraggett,K (2595)-Gajewski,G (2628) Barcelona 2012}) 8... a6 {[%emt 0:00:10]} 9. Bd3 {[%emt 0:00:58]} Nc6 {[%emt 0:05:31]} 10. O-O {[%emt 0:00:06]} Be7 {[%emt 0:00:43]} 11. Bd2 {[%emt 0:01:18]} O-O {[%emt 0:01:56]} 12. Rac1 {[%emt 0:00:18]} Qd7 $146 {[%emt 0:30:53]} ({Predecessor:} 12... Rd8 13. Ne4 Qb8 14. Rfe1 Bd7 15. Nc5 Be8 16. Be3 {1-0 (85) Rocha,W (2325)-Lima,D (2475) Rio de Janeiro 1998}) 13. Ne2 {[%emt 0:29:10]} Rd8 {[%emt 0:13:04]} 14. Rfd1 {[%emt 0:13:28]} b5 {[%emt 0:12:52]} 15. Bb1 {[%emt 0:06:33]} Bb7 {[%emt 0:04:56]} 16. Be1 {[%emt 0:14:17]} Rac8 {[%emt 0:05:04]} 17. Qe3 {[%emt 0:01:50]} h6 {[%emt 0:03:22]} 18. a3 {[%emt 0:05:19]} Bf8 {[%emt 0:03:10]} 19. h3 {[%emt 0:02:25]} Ne7 {[%emt 0:01:34]} 20. Rxc8 {[%emt 0:01:22]} Rxc8 {[%emt 0:00:23]} 21. Ne5 {[%emt 0:00:44]} Qe8 {[%emt 0:00:12]} 22. Nf4 {[%emt 0:02:33]} Ned5 {[%emt 0:00:37]} 23. Nxd5 {[%emt 0:00:14]} Bxd5 {[%emt 0:00:07]} 24. Rc1 {[%emt 0:03:30]} Rxc1 {[%emt 0:02:55]} 25. Qxc1 {[%emt 0:00:01]} Be4 {[%emt 0:00:27]} 26. Bxe4 {[%emt 0:02:11]} Nxe4 {[%emt 0:00:05]} 27. Qc7 {[%emt 0:09:02]} Bd6 {[%emt 0:03:11]} 28. Qb7 {[%emt 0:00:42]} Bxe5 {[%emt 0:00:41]} 29. dxe5 {[%emt 0:00:01]} Nc5 {[%emt 0:00:48]} 30. Qb6 {[%emt 0:00:09]} Qc8 {[%emt 0:00:29]} 31. Bd2 {[%emt 0:06:59]} Na4 {[%emt 0:03:03]} 32. Qd4 {[%emt 0:00:08]} Qc5 {[%emt 0:00:47]} 33. Qd8+ {[%emt 0:01:14]} Kh7 {[%emt 0:00:13]} 34. Qd3+ {[%emt 0:00:01]} Kg8 {[%emt 0:00:15]} 35. Qd8+ {[%emt 0:02:20]} Kh7 {[%emt 0:02:15]} 36. b3 {[%emt 0:00:30]} Nb2 {[%emt 0:00:48]} 37. Qd6 {[%emt 0:00:04]} Qc2 {[%emt 0:00:20]} 38. Qb4 {[%emt 0:00:59]} Nd3 {[%emt 0:00:46]} 39. Qe4+ {[%emt 0:00:07]} Kg8 {[%emt 0:00:09]} 40. Qa8+ {[%emt 0:00:45]} Kh7 {[%emt 0:00:07]} 41. Qe4+ {[%emt 0:00:36]} Kg8 {[%emt 0:00:13]} 42. Qa8+ $11 {[%emt 0:00:27]} 1/2-1/2

[Event "84th Annual Southwest Open"]
[Site "Irving"]
[Date "2018.09.03"]
[Round "8"]
[White "Noland, Shawn W"]
[Black "Oberoi, Shelev"]
[Result "0-1"]
[ECO "C34"]
[WhiteElo "2071"]
[BlackElo "1896"]
[Annotator "NA"]
[PlyCount "74"]
[EventDate "2018.08.31"]
[EventType "swiss"]
[EventCountry "USA"]
[SourceTitle "playchess.com"]
[Source "ChessBase"]
[SourceQuality "1"]
[TimeControl "5400+30"]

1. e4 {[%emt 0:06:42]} e5 {[%emt 0:00:00]} 2. f4 {[%emt 0:00:40]} exf4 {[%emt 0:00:00]} 3. Nf3 {[%emt 0:00:06]} c6 {[%emt 0:00:00]} 4. d4 {[%emt 0:05:01]} d5 {[%emt 0:00:41]} 5. exd5 {[%emt 0:05:43]} cxd5 {[%emt 0:01:14]} 6. Bxf4 {[%emt 0:00:08]} Bd6 {[%emt 0:04:46]} 7. Qd2 {[%emt 0:05:15]} Ne7 {[%emt 0:11:57]} 8. Bd3 {[%emt 0:08:10]} O-O {[%emt 0:04:40]} 9. O-O {[%emt 0:00:55]} Ng6 {[%emt 0:03:46]} 10. Bg5 {[%emt 0:04:54]} f6 {[%emt 0:08:14]} 11. Be3 {[%emt 0:05:48]} Be6 {[%emt 0:12:44]} 12. Qf2 {[%emt 0:02:13]} Nf4 $16 {[%emt 0:12:07]} (12... Nc6 $11) 13. Bxf4 {[%emt 0:15:36]} Bxf4 {[%emt 0:01:02]} 14. Nh4 {[%emt 0:05:37]} Bc7 {[%emt 0:06:09]} 15. Nf5 {[%emt 0:04:11]} g6 {[%emt 0:06:57]} 16. Nh4 {[%emt 0:03:21]} Nc6 {[%emt 0:01:07]} 17. c3 {[%emt 0:00:46]} Qd6 {[%emt 0:02:11]} 18. g3 {[%emt 0:01:22]} f5 {[%emt 0:05:03]} 19. Na3 {[%emt 0:06:23]} a6 {[%emt 0:03:38]} 20. Qe3 {[%emt 0:05:06]} Rae8 {[%emt 0:05:17]} 21. Qh6 {[%emt 0:02:38]} Qd7 {[%emt 0:00:44]} 22. Rae1 {[%emt 0:01:48]} Qg7 {[%emt 0:02:03]} 23. Qxg7+ {[%emt 0:02:02]} Kxg7 {[%emt 0:00:02]} 24. Ng2 {[%emt 0:00:03]} Bf7 {[%emt 0:02:07]} 25. Nc2 {[%emt 0:00:55]} h6 {[%emt 0:01:00]} 26. Rf3 {[%emt 0:02:36]} Rxe1+ {[%emt 0:00:37]} 27. Ncxe1 {[%emt 0:00:11]} Re8 {[%emt 0:00:24]} 28. Kf2 {[%emt 0:00:10]} Nb8 {[%emt 0:01:09]} 29. Nh4 {[%emt 0:00:38]} Re6 {[%emt 0:01:11]} 30. Re3 {[%emt 0:01:07]} Rb6 {[%emt 0:00:50]} 31. b3 {[%emt 0:00:36]} Rc6 {[%emt 0:00:34]} 32. Bf1 {[%emt 0:00:57]} Nd7 {[%emt 0:01:00]} 33. Bg2 {[%emt 0:01:03]} Nf6 {[%emt 0:00:18]} 34. c4 {[%emt 0:01:46]} Ng4+ {[%emt 0:00:17]} 35. Ke2 {[%emt 0:00:07]} Nxe3 {[%emt 0:00:12]} 36. Kxe3 {[%emt 0:00:02]} Re6+ {[%emt 0:00:55]} 37. Kd2 {[%emt 0:00:01]} Ba5+ {[%emt 0:00:07]} 0-1

[Event "84th Annual Southwest Open"]
[Site "Irving"]
[Date "2018.09.03"]
[Round "8"]
[White "Sanchez, Robert"]
[Black "Free, Graham"]
[Result "1/2-1/2"]
[ECO "B13"]
[WhiteElo "1834"]
[BlackElo "1926"]
[Annotator "NA"]
[PlyCount "21"]
[EventDate "2018.08.31"]
[EventType "swiss"]
[EventCountry "USA"]
[SourceTitle "playchess.com"]
[Source "ChessBase"]
[SourceQuality "1"]
[TimeControl "5400+30"]

1. e4 {[%emt 0:09:26]} c6 {[%emt 0:00:00]} 2. d4 {[%emt 0:00:24]} d5 {[%emt 0:00:00]} 3. exd5 {[%emt 0:00:10]} cxd5 {[%emt 0:00:00]} 4. Bd3 {[%emt 0:00:19]} Nc6 {[%emt 0:00:00]} 5. c3 {[%emt 0:00:07]} Qc7 {[%emt 0:00:34]} 6. Nf3 {[%emt 0:02:04]} Bg4 {[%emt 0:00:30]} 7. h3 {[%emt 0:00:02]} Bh5 {[%emt 0:00:32]} 8. O-O {[%emt 0:00:27]} e6 {[%emt 0:00:23]} 9. Re1 {[%emt 0:01:18]} Bd6 {[%emt 0:03:06]} 10. Nbd2 {[%emt 0:00:42]} Nge7 {[%emt 0:01:25]} 11. Nf1 {[%emt 0:00:37]} 1/2-1/2

[Event "84th Annual Southwest Open"]
[Site "Irving"]
[Date "2018.09.03"]
[Round "8"]
[White "Huang, Max"]
[Black "Findlay, Ian T"]
[Result "0-1"]
[ECO "A65"]
[WhiteElo "1805"]
[BlackElo "2263"]
[Annotator "NA"]
[PlyCount "82"]
[EventDate "2018.08.31"]
[EventType "swiss"]
[EventCountry "USA"]
[SourceTitle "playchess.com"]
[Source "ChessBase"]
[SourceQuality "1"]
[TimeControl "5400+30"]

1. d4 {[%emt 0:00:00]} Nf6 {[%emt 0:00:00]} 2. c4 {[%emt 0:00:00]} c5 {[%emt 0:00:00]} 3. d5 {[%emt 0:00:00]} e6 {[%emt 0:00:00]} 4. Nc3 {[%emt 0:00:00]} exd5 {[%emt 0:00:00]} 5. cxd5 {[%emt 0:00:00]} d6 {[%emt 0:00:04]} 6. e4 {[%emt 0:00:02]} g6 {[%emt 0:00:07]} 7. Bd3 {[%emt 0:00:08]} Bg7 {[%emt 0:00:09]} 8. h3 {[%emt 0:00:03] A65: Modern Benoni: 6 e4} a6 {[%emt 0:00:35]} 9. a4 {[%emt 0:00:05]} Nbd7 {[%emt 0:00:21]} 10. Nf3 {[%emt 0:00:26]} Nh5 {[%emt 0:00:09]} 11. O-O {[%emt 0:02:13]} Ne5 {[%emt 0:00:07]} 12. Be2 {[%emt 0:01:14]} Nxf3+ {[%emt 0:01:39]} 13. Bxf3 {[%emt 0:00:07]} Qh4 {[%emt 0:00:09]} 14. Bxh5 {[%emt 0:13:11]} gxh5 {[%emt 0:00:03] [#]} 15. Ne2 $146 {[%emt 0:02:08]} Rg8 {[%emt 0:20:01] [#]} 16. Ra3 $1 {[%emt 0:06:21]} Be5 {[%emt 0:02:33]} 17. Ng3 {[%emt 0:00:16]} Bxh3 $1 {[%emt 0:10:31]} 18. gxh3 {[%emt 0:03:11]} Qxh3 {[%emt 0:01:47]} 19. Qf3 {[%emt 0:01:52]} h4 {[%emt 0:06:53]} 20. Qf5 {[%emt 0:15:58]} Qxf5 {[%emt 0:01:32]} 21. exf5 {[%emt 0:00:00]} hxg3 {[%emt 0:00:19]} 22. f4 {[%emt 0:03:14]} Bf6 {[%emt 0:03:41]} 23. Kg2 {[%emt 0:01:33]} h5 {[%emt 0:00:58]} 24. Rxg3 {[%emt 0:02:13]} Kd7 {[%emt 0:03:23]} 25. Rg5 {[%emt 0:02:52]} Rae8 {[%emt 0:01:02]} 26. Kh3 {[%emt 0:05:47]} Bxg5 {[%emt 0:03:11]} 27. fxg5 {[%emt 0:00:07]} Re5 {[%emt 0:03:12]} 28. Kh4 {[%emt 0:00:38]} Rxd5 {[%emt 0:00:41]} 29. Kxh5 {[%emt 0:00:27]} Rh8+ {[%emt 0:00:29]} 30. Kg4 {[%emt 0:00:04]} Rd4+ {[%emt 0:00:10]} 31. Rf4 {[%emt 0:03:18]} Rxf4+ {[%emt 0:04:58]} 32. Bxf4 {[%emt 0:00:08]} b5 {[%emt 0:01:04]} 33. axb5 $19 {[%emt 0:00:49]} axb5 {[%emt 0:00:04]} 34. g6 {[%emt 0:00:13]} fxg6 {[%emt 0:00:09]} 35. fxg6 {[%emt 0:00:12]} Ke6 {[%emt 0:00:15]} 36. Kg5 {[%emt 0:00:11]} Rh1 {[%emt 0:01:05]} 37. g7 {[%emt 0:00:39]} Rg1+ {[%emt 0:00:28]} 38. Kh6 {[%emt 0:00:32]} Kf7 {[%emt 0:00:08]} 39. Bxd6 {[%emt 0:00:37]} Rg6+ {[%emt 0:00:10]} 40. Kh7 {[%emt 0:01:33]} Rxg7+ {[%emt 0:00:12]} 41. Kh8 {[%emt 0:00:04]} Rg6 {[%emt 0:00:31]} 0-1